Cogmind - Beta 15 @@@ ROGUE MODE // 2025.08.04 @ 10:31:15 Player: McSaucyNugget Result: Self-destructed Performance ------------- Evolutions (2) 1000 Regions Visited (6) 1200 Robots Destroyed (53) 265 Value Destroyed (1291) 1291 Prototype IDs (26) 520 Alien Tech Used (0) 0 Bonus (300) 300 TOTAL SCORE: 4576 Bonus ------- Aligned with FarCom 300 Cogmind --------- Core Integrity 511/550 Matter 300/300 Energy 136/280 System Corruption 3% Temperature Cool (0) Movement Treading (243) Ox1 Location -8/Materials Parts ------- > --- POWER (1) -------- Heavy Ion Engine > --- PROPULSION (4) --- Armored Treads Armored Treads Armored Treads Advanced Treads > --- UTILITY (4) ------ Improved Cooling System Huge Storage Unit Heavy Armor Plating > --- WEAPON (2) ------- Advanced Beam Cannon Gauss Cannon > --- INVENTORY (25) --- Light Treads Light Treads Armored Treads Surge Thruster Surge Thruster Surge Thruster Surge Thruster Improved VTOL Module Superbattery (1500) Large Matter Pod (150) Improved Sensor Array Improved Signal Interpreter Core Analyzer Light Armor Plating Hardened Light Armor Plating Medium Laser Advanced Beam Cannon Heavy Assault Rifle Improved Light Cannon Gauss Cannon Gauss Cannon Gauss Cannon Proton Missile Launcher Plasma Flamer Flail Peak State ------------ > --- POWER ------------ Heavy Ion Engine > --- PROPULSION ------- Armored Treads Armored Treads Armored Treads Advanced Treads > --- UTILITY ---------- Improved Cooling System Huge Storage Unit Heavy Armor Plating > --- WEAPON ----------- Advanced Beam Cannon Gauss Cannon > --- INVENTORY -------- Light Treads Light Treads Armored Treads Surge Thruster Surge Thruster Surge Thruster Surge Thruster Improved VTOL Module Superbattery Large Matter Pod Improved Sensor Array Improved Signal Interpreter Core Analyzer Light Armor Plating Hardened Light Armor Plating Medium Laser Advanced Beam Cannon Heavy Assault Rifle Improved Light Cannon Gauss Cannon Gauss Cannon Gauss Cannon Proton Missile Launcher Plasma Flamer Flail [Rating: 40] Favorites ----------- Power Ion Engine Engine Ion Engine Propulsion Armored Treads Treads Armored Treads Flight Unit Surge Thruster Utility Huge Storage Unit Device Shield Generator Storage Huge Storage Unit Processor Visual Processing Unit Protection Hardened Light Armor Plating Weapon Advanced Beam Cannon Energy Gun Shock Rifle Energy Cannon Advanced Beam Cannon Ballistic Gun Assault Rifle Ballistic Cannon Improved Light Cannon Launcher Proton Missile Launcher Special Weapon Plasma Flamer Impact Weapon Flail Build | -11 -10 -9 -9 -9 -8 -8 ------- Run | Yrd Mat Mat Min Exi Min Mat Slots Evolved 4 | . . 2 . . . 2 Power . | . . . . . . . Propulsion 2 | . . 1 . . . 1 Utility 2 | . . 1 . . . 1 Weapon . | . . . . . . . Parts Attached 40 | 6 1 19 7 . . 7 Power 4 | 1 1 1 . . . 1 Engine 4 | 1 1 1 . . . 1 Core . | . . . . . . . Reactor . | . . . . . . . Propulsion 11 | 2 . 7 . . . 2 Treads 8 | 2 . 4 . . . 2 Leg . | . . . . . . . Wheel . | . . . . . . . Hover . | . . . . . . . Flight 3 | . . 3 . . . . Utility 12 | 1 . 4 5 . . 2 Device 4 | . . 1 2 . . 1 Storage 4 | 1 . 2 1 . . . Processor 1 | . . 1 . . . . Hackware . | . . . . . . . Protection 3 | . . . 2 . . 1 Artifact . | . . . . . . . Weapon 13 | 2 . 7 2 . . 2 Energy Gun 2 | . . 2 . . . . Energy Cannon 3 | . . 3 . . . . Ballistic Gun 2 | 2 . . . . . . Ballistic Cannon 2 | . . . 1 . . 1 Launcher 1 | . . . . . . 1 Special Weapon 1 | . . . 1 . . . Impact Weapon 2 | . . 2 . . . . Slashing Weapon . | . . . . . . . Piercing Weapon . | . . . . . . . Special Melee Weapon . | . . . . . . . Unidentified Prototypes 2 | . . 2 . . . . Parts Lost 10 | . 1 6 1 . . 2 Power 3 | . 1 1 . . . 1 Propulsion 3 | . . 3 . . . . Utility 2 | . . . 1 . . 1 Weapon 2 | . . 2 . . . . Highest Loss Streak 3 | . 1 3 1 . . 1 To Critical Strikes . | . . . . . . . Average Backups 17 | 1 4 5 21 25 25 24 Power . | . 1 1 . . . . Propulsion 5 | . 2 1 7 7 7 8 Utility 5 | . . 1 6 8 9 6 Weapon 6 | . 1 1 8 9 9 9 Tool/Special . | . . . . . . . Unused Backups 27 | . . 5 . 1 . 21 Power 1 | . . 1 . . . . Propulsion 8 | . . 2 . 1 . 5 Utility 10 | . . 2 . . . 8 Weapon 8 | . . . . . . 8 Tool/Special . | . . . . . . . Average Slot Usage (%) 89 | . 85 64 99 100 100 87 Engine 10 | . 14 9 11 11 11 7 Treads 31 | . 28 20 33 33 33 35 Device 7 | . . 3 10 11 11 8 Storage 10 | . 14 7 11 11 11 9 Protection 7 | . . . 10 11 11 9 Energy Cannon 8 | . . 3 12 11 11 9 Ballistic Gun 4 | . 28 8 . . . . Ballistic Cannon 7 | . . . 8 11 11 8 Peak Build Rating 40 | 6 6 26 26 26 26 40 Average Rating 21 | 4 5 10 24 25 26 32 On Entrance 16 | . 6 6 26 26 26 26 Naked Turns 35 | . . 35 . . . . Heaviest Build 116 | 12 14 54 101 100 100 116 Greatest Support 82 | 40 40 60 60 60 60 82 Greatest Overweight (x) 1 | . . . 1 1 1 1 Average Overweight (x) . | . . . . 1 1 1 Largest Inventory Capacity 25 | 8 8 20 25 25 25 25 Average Capacity 19 | 6 8 9 24 25 25 25 Most Carried 25 | 4 5 14 25 25 25 25 Average Carried 17 | 1 4 5 21 24 25 24 Final Capacity 25 | 8 8 20 25 25 25 25 Final Carried 25 | 4 4 14 25 25 25 25 Class Distribution -------------------- 98% | Mutant Dominant Class ---------------- Mutant | -10/Materials Mutant | -9/Materials Mutant | -9/Mines Mutant | -9/Exiles Mutant | -8/Mines Mutant | -8/Materials Resources | -11 -10 -9 -9 -9 -8 -8 ----------- Run | Yrd Mat Mat Min Exi Min Mat Matter Collected 1175 | 188 234 290 241 . . 222 Remotely . | . . . . . . . Salvage Created 1654 | . 402 504 194 . . 554 Parts 110 | . 25 34 11 . . 40 Haulers Intercepted 5 | . 1 2 . . . 2 Recyclers Shooed 2 | . . 1 . . . 1 Parts Field Recycled . | . . . . . . . Retrieved Matter . | . . . . . . . Parts Self-Destructed . | . . . . . . . Prevented . | . . . . . . . Kills | -11 -10 -9 -9 -9 -8 -8 ------- Run | Yrd Mat Mat Min Exi Min Mat Combat Hostiles Destroyed 39 | . 10 13 5 . . 11 Guns 17 | . 10 7 . . . . Cannons 13 | . . 1 5 . . 7 AOE 9 | . . 5 . . . 4 Classes Destroyed 13 | . 4 3 3 . . 3 Worker 3 | . 1 1 . . . 1 Builder 2 | . . 1 1 . . . Tunneler 1 | . . . 1 . . . Hauler 5 | . 1 2 . . . 2 Recycler 2 | . . . . . . 2 Operator 1 | . . . . . . 1 Watcher 1 | . . 1 . . . . Swarmer 12 | . 3 2 . . . 7 Grunt 18 | . 7 9 2 . . . Brawler 2 | . . . 2 . . . Sentry 4 | . . 2 . . . 2 Specialist 2 | . . . . . . 2 Assembled 1 | . . . 1 . . . Best Kill Streak 7 | . 7 6 3 . . 4 Combat Bots Only 6 | . 6 4 2 . . 4 Max Kills in Single Turn 6 | . 1 6 1 . . 4 Gunslinging . | . . . . . . . Exploded 4 | . . 4 . . . 4 Melee . | . . . . . . . Uniques/NPCs Destroyed . | . . . . . . . Combat | -11 -10 -9 -9 -9 -8 -8 -------- Run | Yrd Mat Mat Min Exi Min Mat Hostile Shots Fired 215 | . 50 98 19 . . 48 Missed 65 | . 18 33 2 . . 12 Hits 150 | . 32 65 17 . . 36 Melee 10 | . . 6 4 . . . Projectile 140 | . 32 59 13 . . 36 Critical Strikes 6 | . 2 1 1 . . 2 Damage Taken 2376 | . 376 1135 248 . . 617 Core 463 | . 34 378 12 . . 39 Absorbed by Shields 101 | . . . 16 . . 85 Core Remaining (%) 62 | 100 86 . . . 2 . Volleys Fired 127 | . 42 40 15 . . 30 Largest 2 | . 2 2 2 . . 2 Hottest 136 | . 40 106 136 . . 108 Shots Fired 243 | . 84 70 29 . . 60 Gun 147 | . 84 63 . . . . Cannon 94 | . . 7 28 . . 59 Launcher 1 | . . . . . . 1 Special 1 | . . . 1 . . . Kinetic 161 | . 84 43 5 . . 29 Thermal 68 | . . 14 24 . . 30 Explosive . | . . . . . . . Electromagnetic 14 | . . 13 . . . 1 Robot Hit Streak 14 | . 10 14 5 . . 10 Robot Miss Streak 6 | . 6 2 2 . . 4 Penetration Max . | . . . . . . . Secondary Targets 2 | . 2 . . . . . Max Gunslinging Chain 1 | . 1 . . . . . Shots Hit Robots 158 | . 56 51 18 . . 33 Core Hits 69 | . 20 23 7 . . 19 Critical Kills 1 | . . 1 . . . . Critical Parts Destroyed . | . . . . . . . Critical Strikes 4 | . . 2 . . . 2 Burn 1 | . . 1 . . . . Destroy 1 | . . 1 . . . . Blast 2 | . . . . . . 2 Melee Attacks 8 | . . 8 . . . . Impact 8 | . . 8 . . . . Slashing . | . . . . . . . Piercing . | . . . . . . . Sneak Attacks . | . . . . . . . Combat Hostiles . | . . . . . . . Follow-up Attacks . | . . . . . . . Damage Inflicted 3874 | . 740 1895 362 . . 877 Guns 1337 | . 737 600 . . . . Cannons 1183 | . . 95 343 . . 745 Explosions 1273 | . . 1179 . . . 94 Melee 21 | . . 21 . . . . Ramming 46 | . 3 . 5 . . 38 Kinetic 1627 | . 737 420 55 . . 415 Thermal 1936 | . . 1304 302 . . 330 Explosive . | . . . . . . . Electromagnetic 244 | . . 150 . . . 94 Impact 21 | . . 21 . . . . Slashing . | . . . . . . . Piercing . | . . . . . . . Highest Corruption 3 | . . . . . . 3 Average Corruption 2 | . . . . . . 2 Corruption Purged . | . . . . . . . Corruption Blocked . | . . . . . . . Effects 3 | . . . . . . 3 Heat Flow Errors 1 | . . . . . . 1 Energy Discharges 1 | . . . . . . 1 Misfires 1 | . . . . . . 1 Overload Shots . | . . . . . . . Overflow Damage 223 | . . 208 . . . 15 Projectiles 15 | . . . . . . 15 Explosions 208 | . . 208 . . . . Melee . | . . . . . . . Knockbacks 8 | . . . 2 . . 6 Impact . | . . . . . . . Kinetic 7 | . . . 2 . . 5 Secondary 1 | . . . . . . 1 Self-Inflicted Damage 226 | . . 226 . . . . Shots 3 | . . 3 . . . . Rammed 4 | . 1 . . . 1 2 Targets Rammed 6 | . 2 . 1 . 1 2 Kicked . | . . . . . . . Crushed 2 | . 1 . 1 . . . Highest Temperature 411 | . 21 150 361 . . 411 Average Temperature 99 | . 9 51 129 . . 115 Received Heat Transfer 696 | . 228 345 90 . . 33 Effects 2 | . . . 2 . . . Shutdowns 1 | . . . 1 . . . Energy Bleed 1 | . . . 1 . . . Siege Activations . | . . . . . . . Martial Activations . | . . . . . . . Shielding Activations . | . . . . . . . Robots Disrupted . | . . . . . . . Combat Hostiles . | . . . . . . . Robots Corrupted . | . . . . . . . Combat Hostiles . | . . . . . . . Parts Fried 1 | . . 1 . . . . Impact Corruptions . | . . . . . . . Robots Melted . | . . . . . . . Combat Hostiles . | . . . . . . . Parts Melted 4 | . . 3 . . . 1 Heat Transferred 2484 | . . 1294 598 . . 592 Parts Sabotaged . | . . . . . . . Parts Stolen . | . . . . . . . Parts Stripped . | . . . . . . . Power Chain Reactions 2 | . . 2 . . . . Alert | -11 -10 -9 -9 -9 -8 -8 ------- Run | Yrd Mat Mat Min Exi Min Mat Maximum Alert Level 2 | . . 2 1 . . . Low Security (%) 93 | 100 100 78 91 . 100 100 Level 1 4 | . . 9 8 . . . Level 2 2 | . . 12 . . . . Level 3 . | . . . . . . . Level 4 . | . . . . . . . Level 5 . | . . . . . . . High Security . | . . . . . . . Max Security . | . . . . . . . Peak Influence 415 | . 145 415 237 . . 125 Initial 157 | . . 51 157 . . . Average 65 | . 49 126 71 . . 43 Influence Increases 1402 | . 267 653 110 . . 372 Destroy 0b10 Robot/C 760 | . 200 260 80 . . 220 Destroy 0b10 Robot/NC 75 | . 10 25 10 . . 30 Destroy Leader 172 | . 42 56 20 . . 54 Disable Machine 105 | . 15 75 . . . 15 Destroy Structure 20 | . . 12 . . . 8 Partial Spotted 30 | . . 30 . . . . Lose Combat Pursuer 240 | . . 195 . . . 45 Influence Decreases 1284 | . 145 369 516 . . 254 Entered New Map 320 | . . 71 249 . . . Time Decay 869 | . 140 238 257 . . 234 Lost Part 95 | . 5 60 10 . . 20 Squads Dispatched 6 | . 1 4 . . . 1 Investigation 1 | . . 1 . . . . Extermination . | . . . . . . . Reinforcement 5 | . 1 3 . . . 1 Assault . | . . . . . . . Garrison . | . . . . . . . Intercept . | . . . . . . . Searches Triggered . | . . . . . . . Construction Impeded . | . . . . . . . Haulers Reinforced . | . . . . . . . Active Scanning Responses . | . . . . . . . Cargo Convoy Interrupts . | . . . . . . . Stealth | -11 -10 -9 -9 -9 -8 -8 --------- Run | Yrd Mat Mat Min Exi Min Mat Distress Signals 3 | . . 3 . . . . Communications Jammed . | . . . . . . . Distress Signals . | . . . . . . . Times Spotted 70 | . 13 34 7 . . 16 Peak Tracking Total 16 | . 5 16 2 . . 4 Tactical Retreats 8 | . . 5 . . . 3 Traps | -11 -10 -9 -9 -9 -8 -8 ------- Run | Yrd Mat Mat Min Exi Min Mat Traps Triggered 4 | . . 1 . . . 3 Indirectly 1 | . . . . . . 1 Trap Hack Attempts . | . . . . . . . Triggered . | . . . . . . . Disarmed . | . . . . . . . Reprogrammed . | . . . . . . . Reused . | . . . . . . . Traps Extracted . | . . . . . . . Installed . | . . . . . . . Triggered . | . . . . . . . Machines | -11 -10 -9 -9 -9 -8 -8 ---------- Run | Yrd Mat Mat Min Exi Min Mat Machines Disabled 8 | . 1 6 . . . 1 Max in Single Turn 5 | . 1 5 . . . 1 Machines Repaired . | . . . . . . . Machines Dismantled . | . . . . . . . Machines Sabotaged . | . . . . . . . Overloaded Fab Kills . | . . . . . . . Hacking | -11 -10 -9 -9 -9 -8 -8 --------- Run | Yrd Mat Mat Min Exi Min Mat Machines Accessed 6 | . 1 1 . 1 . 3 Terminals 3 | . 1 1 . . . 1 Fabricators . | . . . . . . . Repair Stations . | . . . . . . . Recycling Units 1 | . . . . . . 1 Scanalyzers 1 | . . . . . . 1 Garrison Access . | . . . . . . . Total Hacks 10 | . 1 1 . 1 . 7 Successful 6 | . . 1 . 1 . 4 Failed 4 | . 1 . . . . 3 Catastrophic 1 | . 1 . . . . . Database Lockouts . | . . . . . . . Manual 5 | . 1 1 . 1 . 2 Terminals 4 | . 1 1 . . . 2 Fabricators . | . . . . . . . Repair Stations . | . . . . . . . Recycling Units 2 | . . . . . . 2 Scanalyzers 3 | . . . . . . 3 Garrison Access . | . . . . . . . Terminal Hacks 2 | . . 1 . 1 . . Maintenance Status 1 | . . 1 . . . . Proto ID Catalog 1 | . . . . 1 . . Fabricator Hacks . | . . . . . . . Repair Station Hacks . | . . . . . . . Recycling Unit Hacks 1 | . . . . . . 1 Retrieve Components 1 | . . . . . . 1 Scanalyzer 2 | . . . . . . 2 Insert Component 1 | . . . . . . 1 Analyze 1 | . . . . . . 1 Garrison Access Hacks . | . . . . . . . Unauthorized Hacks 1 | . . . . . . 1 Terminals 1 | . . . . . . 1 Skim 1 | . . . . . . 1 Fabricators . | . . . . . . . Repair Stations . | . . . . . . . Recycling Units . | . . . . . . . Scanalyzers . | . . . . . . . Garrison Access . | . . . . . . . Data Cores Recovered . | . . . . . . . Used . | . . . . . . . Hacking Detections 4 | . 1 . . . . 3 Full Trace Events . | . . . . . . . Feedback Events . | . . . . . . . Feedback Blocked . | . . . . . . . Robot Schematics Acquired . | . . . . . . . Robots Built . | . . . . . . . Authchips . | . . . . . . . Time . | . . . . . . . Total Robot Build Rating . | . . . . . . . Part Schematics Acquired 1 | . . . . . . 1 Parts Built . | . . . . . . . Authchips . | . . . . . . . Time . | . . . . . . . Total Part Build Rating . | . . . . . . . Parts Repaired . | . . . . . . . Time . | . . . . . . . Parts Recycled . | . . . . . . . Recycled Matter . | . . . . . . . Retrieved Matter . | . . . . . . . Retrieved Components 6 | . . . . . . 6 Parts Scanalyzed 1 | . . . . . . 1 Part Schematics Acquired 1 | . . . . . . 1 Parts Damaged . | . . . . . . . Bothacking | -11 -10 -9 -9 -9 -8 -8 ------------ Run | Yrd Mat Mat Min Exi Min Mat Used RIF Installer . | . . . . . . . Robots Hacked . | . . . . . . . Non-combat . | . . . . . . . Combat . | . . . . . . . Robot Hacks Applied . | . . . . . . . Relay Couplers Released . | . . . . . . . Fabnet Peak Effective % . | . . . . . . . Robots Rewired . | . . . . . . . Allies Hacked . | . . . . . . . Hacks Repelled . | . . . . . . . Allies | -11 -10 -9 -9 -9 -8 -8 -------- Run | Yrd Mat Mat Min Exi Min Mat Total Allies . | . . . . . . . Largest Group . | . . . . . . . Highest-Rated Group . | . . . . . . . Highest-Rated Ally . | . . . . . . . Total Orders . | . . . . . . . Ally Attacks . | . . . . . . . Total Damage . | . . . . . . . Kills . | . . . . . . . Allies Corrupted . | . . . . . . . Allies Melted . | . . . . . . . Intel | -11 -10 -9 -9 -9 -8 -8 ------- Run | Yrd Mat Mat Min Exi Min Mat Active Infowar (turns) 469 | . . 194 275 . . . Optics 222 | . . 194 28 . . . Sensors 275 | . . 147 128 . . . Seismic 147 | . . . 147 . . . Robot Analysis Total . | . . . . . . . Derelict Logs Recovered . | . . . . . . . Drone Launches . | . . . . . . . Drone Recoveries . | . . . . . . . Exploration | -11 -10 -9 -9 -9 -8 -8 ------------- Run | Yrd Mat Mat Min Exi Min Mat Turns Passed 3524 | 163 360 519 911 679 55 837 Spaces Moved 1573 | 111 140 402 353 272 22 273 Core 158 | 24 . 134 . . . . Treads 1285 | 87 140 138 353 272 22 273 Legs . | . . . . . . . Wheels . | . . . . . . . Hover . | . . . . . . . Flight 130 | . . 130 . . . . Fastest Speed 29 | 50 160 29 170 250 250 243 Average Speed 187 | 136 160 81 237 250 250 246 Slowest Speed 250 | 160 160 170 250 250 250 250 Overloaded Moves . | . . . . . . . Propulsion Burnouts . | . . . . . . . Robots Hopped 4 | . . 4 . . . . Potential Cave-ins . | . . . . . . . Cave-ins Triggered . | . . . . . . . Exploration Rate (%) 37 | 5 36 46 66 63 19 25 Regions Visited 6 Branch Regions 3 Pre-discovered Areas . | . . . . . . . Known Exits Taken . | . . . . . . . Unknown Exits Taken 6 | 1 1 1 1 1 1 . Scrap Searched 3 | . . . 3 . . . Spaces Dug 1 | . . 1 . . . . Terrain Destroyed 21 | . . 12 2 . . 7 Melee 1 | . . 1 . . . . Projectile 9 | . . . 2 . . 7 AOE 11 | . . 11 . . . . Terrain Rammed . | . . . . . . . Walls Destroyed . | . . . . . . . Machines Disabled . | . . . . . . . Actions | -11 -10 -9 -9 -9 -8 -8 --------- Run | Yrd Mat Mat Min Exi Min Mat Total 1884 | 120 191 506 395 273 22 377 Wait 57 | . 4 5 8 . . 40 Move 1559 | 110 139 393 352 271 21 273 Hop 4 | . . 4 . . . . Pick Up 44 | 4 1 18 8 1 . 12 Fast Attach 27 | 6 . 14 4 . . 3 Attach 12 | . 2 7 . . . 3 Detach 12 | . 1 7 3 . . 1 Swap 8 | . . 2 4 . . 2 Drop 20 | . . 8 . 1 . 11 Fire 127 | . 42 40 15 . . 30 Melee 8 | . . 8 . . . . Ram . | . . . . . . . Kick . | . . . . . . . Crush 6 | . 2 . 1 . 1 2 Escape Stasis . | . . . . . . . Rewire . | . . . . . . . Trap . | . . . . . . . Miscellaneous . | . . . . . . . Route ------- -11/Scrapyard -10/Materials -9/Materials (discovered 3 exits: *Mat / [*Min] / [*Sto]) -9/Mines (discovered 3 exits: *Mat x2 / *Exi) -9/Exiles -8/Mines -8/Materials History --------- Turn | Location | Event 2 | -11/Scrapyard | Met Revision 17 17 | -11/Scrapyard | Discovered new exit (range 15) 164 | -11/Scrapyard | Entered Materials 317 | -10/Materials | Build established: Mutant 484 | -10/Materials | Discovered new exit (range 6) 524 | -10/Materials | Entered another Materials area 524 | -9/Materials | Evolved 2 slots: Propulsion x1, Utility x1 529 | -9/Materials | Discovered new exit (range 15) 814 | -9/Materials | Released all parts (2) 826 | -9/Materials | Discovered new exit (range 4) 844 | -9/Materials | Lost 3 parts (1p2n) 932 | -9/Materials | Core integrity fell below 50% 932 | -9/Materials | Core integrity fell below 20% 940 | -9/Materials | Discovered new exit (range 8) 1043 | -9/Materials | Entered Mines 1200 | -9/Mines | Found a hidden stash of uninstalled traps 1273 | -9/Mines | A weapon hastily lodged in a ceiling crevice suddenly fell to the ground 1309 | -9/Mines | Joined a pair of Derelicts in attacking an 0b10 outpost 1400 | -9/Mines | Assembled infested the area 1793 | -9/Mines | Discovered new exit (range 6) 1907 | -9/Mines | Discovered new exit (range 6) 1942 | -9/Mines | Deemed a non-threat by the Exiles lab entrance 1944 | -9/Mines | Discovered new exit (range 5) 1954 | -9/Mines | Entered Exiles 2017 | -9/Exiles | Met 8R-AWN 2059 | -9/Exiles | Met EX-HEX 2127 | -9/Exiles | Met EX-BIN 2154 | -9/Exiles | Aligned with FarCom system 2157 | -9/Exiles | Given EX-Vault access code 2239 | -9/Exiles | Opened EX-Vault 2258 | -9/Exiles | Found Superbattery 2313 | -9/Exiles | Warned to stay clear of 0b10 Research branches 2383 | -9/Exiles | Met EX-DEC 2611 | -9/Exiles | Discovered new exit (range 10) 2633 | -9/Exiles | Left Exiles lab with Superbattery 2633 | -9/Exiles | Entered Mines 2673 | -8/Mines | Discovered new exit (range 7) 2688 | -8/Mines | Entered Materials 2688 | -8/Materials | Evolved 2 slots: Propulsion x1, Utility x1 3525 | -8/Materials | Self-destructed Last Messages --------------- 03477_ R-06 Scavenger destroyed. 03477_ Slug penetrates Wall. 03482_ Acquired 34 matter. 03487_ R-06 Scavenger collects Adv. Visual Processing Unit. 03491_ R-06 Scavenger collects Lgt. Treads. 03495_ R-06 Scavenger collects Pulse Rifle. 03498_ R-06 Scavenger collects Imp. Carbon-fiber Leg. 03499_ U-05 Engineer builds a Wall. 03500_ Scanalyzer disabled. 03500_ A-02 Transporter destroyed. 03505_ K-01 Serf collects debris. 03508_ Acquired 12 matter. 03510_ U-05 Engineer builds a Wall. 03514_ K-01 Serf collects debris. 03516_ Acquired Hvy. Ion Engine. 03517_ K-01 Serf collects debris. 03520_ Acquired 10 matter. 03523_ K-01 Serf collects debris. Map ----- +----------------------------------------------------+ | ?????????????????????????????????????????????????? | | ?????????????????????????????????????????????????? | | ?????????????????????????????????????????????????? | | ?????????????????????????????????????????????????? | | ?????????????????????????????????????????????????? | | ?????????????????????????????????????????????????? | | ?????????????????????????????????????????????????? | | ?????????????????????????????????????????????????? | | ?????????????????????????????????????????????????? | | ?????????????????????????????????????????????????? | | ?????????????????????????????????????????????????? | | ?????????????????????????????????????????????????? | | ?????????????????????????????????????????????????? | | ?????????????????????????????????????????????????? | | ?????????????????????????????????????????????????? | | ?????????????????????????????????????????????????? | | ????????????????????????????????????o????????????? | | ?????????????????????????????????????????????????? | | ??????????????????????##?????????????????????????? | | ?????????????????????# ?????????????????????????? | | ?????????????????????# #?????????????????????????? | | ?????????????????????# ###########???????????????? | | ?????????????????????# # #???????????????? | | ?????????????????????# #"S #??Y????????????? | | ????????######+####### #"""% #???????????????? | | ??????? # @"* #???????????????? | | ??????? u [% """ #???????????????? | | ??????????"" # !k= """ #???????????????? | | ??????????"" ### # """ +???????????????? | | ??????????"" ???### # #???????????????? | | ?????????????????# #% ###########???????????????? | | ?????????????????### = #############?????????????? | | ???????????????????# # #?????????????? | | ???????????????????# =#% #?????????????? | | ???????????????????# !%# = #?????????????? | | ???????????????????# %+ !""" "" #?????????????? | | ???????????????????# # """ T"???????????????? | | ???????????????????# #[ """ "????????????????? | | ???????????????????# # #?????????????? | | ??????????????????## ##########Y#??########????? | | ??????????????????## % #?????????????# #????? | | ???????????????????# #?????????????# !!#????? | | ??????????######???# %#??????? #????# ! #????? | | ??????????# * ??# #?????? #????# #????? | | ??????????# ??#% ##????? #????# [ #????? | | ??????????# ]?# ## ??? #????# #????? | | ??????????# ?# ## "?? [[#????####+####???? | | ??????????# * [ # ## "" [ #????# #???? | | ??????????# # ## """ #????# #???? | | ??????????# + ## """ #????# #???? | +----------------------------------------------------+ Best States ------------- Heat Dissipation 58 Energy Generation 14 Energy Capacity 280 Matter Stores 300 Matter Capacity 300 Sight Range 18 Robot Scan Range 15 Terrain Scan Density 10 Armor Coverage 750 Evasion (%) 64 Recoil Reduction 4 Item Schematics ----------------- Imp. VTOL Module | -8/Materials | Scanalyzed Robot Schematics ------------------ None Fabricated ------------ Nothing Repaired ---------- Nothing Alien Tech Used ----------------- None Achievements -------------- None Challenges ------------ None Game ------ Seed UltimateIntegrityMultitool Manual? 0 Play Time 00:47:59 Cumulative 41.6 hours Start 2025.08.02 @ 21:04:28 End 2025.08.04 @ 10:31:15 Sessions 1 Manual Loads 0 Difficulty Rogue Special Mode None Game No. 34 Rogue 34 Adventurer 0 Explorer 0 Win Type - Total 3 Types 2/0/1/0/0/0/0/0/0/0 Lore% 28 Gallery% 37 Achievement% 46 Wizard Run 0 Options --------- Layout 2 ASCII 0 Keyboard 1 Movement Vi Keybinds 0 Fullscreen 1 Font 18/SmallcapsGlow Map View 50x49 Zoom Use 47% Tactical HUD 1 Map Filters NONE Filters NONE Steam X RUN: cf47b347-2835-4f67-9d9a-0dcb4603efde